fUST/lending_fUST_20260127
["ID","MTS","AMOUNT","RATE_DAILY","PERIOD"]
[403678238,1769468759812,500.0,0.00034613,120]
[403678239,1769468760046,500.0,0.00034613,120]
[403678240,1769468760101,500.0,0.00034613,120]
[403678241,1769468760308,500.0,0.00034613,120]
[403678242,1769468760375,500.0,0.00034613,120]
[403678243,1769468760553,490.32,0.00034613,120]
[403678244,1769468760664,500.0,0.00034613,120]
[403678245,1769468762065,441.74949658,0.00034613,120]
[403678246,1769468765525,500.0,0.00034613,120]
[403678247,1769468765765,500.0,0.00034613,120]
[403678248,1769468765970,500.0,0.00034613,120]
[403678249,1769468766227,500.0,0.00034613,120]
[403678250,1769468767615,500.0,0.00034613,120]
[403678251,1769468767779,500.0,0.00034613,120]
[403678252,1769468767860,500.0,0.00034613,120]
[403678253,1769468768053,500.91593103,0.00034613,120]
[403678254,1769468768190,500.0,0.00034613,120]
[403678255,1769468771713,222.33800362,0.00034613,120]
[403678256,1769468775261,501.36016185,0.00034613,120]
[403678257,1769468777101,500.0,0.00034613,120]
[403678258,1769468777347,500.0,0.00034613,120]
[403678259,1769468780552,500.0,0.00034613,120]
[403678260,1769468780676,500.0,0.00034613,120]
[403678261,1769468780788,500.0,0.00034613,120]
[403678262,1769468783936,229.39740068,0.00034613,120]
[403678263,1769468789772,500.0,0.00034613,120]
[403678264,1769468796500,501.03768257,0.00034613,120]
[403678265,1769468798381,500.0,0.00034613,120]
[403678266,1769468798683,500.0,0.00034613,120]
[403678267,1769468800206,500.0,0.00034613,120]
[403678268,1769468801986,500.0,0.00034613,120]
[403678269,1769468802222,500.0,0.00034613,120]
[403678270,1769468802549,500.0,0.00034613,120]
[403678271,1769468802864,500.0,0.00034613,120]
[403678272,1769468804119,500.0,0.00034613,120]
[403678273,1769468804271,500.0,0.00034613,120]
[403678274,1769468804526,500.0,0.00034613,120]
[403678275,1769468804779,504.3,0.00034613,120]
[403678276,1769468807493,500.81634168,0.00034613,120]
[403678277,1769468807904,154.858578,0.00034613,120]
[403678278,1769468808123,500.0,0.00034613,120]
[403678279,1769468808371,500.0,0.00034613,120]
[403678280,1769468809396,500.0,0.00034613,120]
[403678281,1769468812132,237.00497771,0.00034613,120]
[403678282,1769468812538,500.0,0.00034613,120]
[403678283,1769468812625,500.0,0.00034613,120]
[403678284,1769468812846,500.0,0.00034613,120]
[403678285,1769468812972,500.0,0.00034613,120]
[403678286,1769468815176,500.26248989,0.00034613,120]
[403678287,1769468815959,500.0,0.00034613,120]
[403678288,1769468816356,500.0,0.00034613,120]
[403678289,1769468817046,500.0,0.00034613,120]
[403678290,1769468817084,500.63496778,0.00034613,120]
[403678291,1769468817210,500.0,0.00034613,120]
[403678292,1769468818661,500.0,0.00034613,120]
[403678293,1769468818934,500.0,0.00034613,120]
[403678294,1769468819229,500.0,0.00034613,120]
[403678295,1769468820902,500.0,0.00034613,120]
[403678296,1769468821415,500.0,0.00034613,120]
[403678297,1769468821656,559.61827572,0.00034613,120]
[403678298,1769468825020,500.0,0.00034613,120]
[403678299,1769468825254,500.0,0.00034613,120]
[403678300,1769468826149,500.0,0.00034613,120]
[403678301,1769468826479,500.0,0.00034613,120]
[403678302,1769468827138,-300.0,0.00012015,2]
[403678303,1769468827160,-369.30729597,0.00012016,2]
[403678304,1769468828367,500.0,0.00034613,120]
[403678305,1769468828404,329.20697434,0.00034613,120]
[403678306,1769468828798,500.0,0.00034613,120]
[403678307,1769468829031,572.305423,0.00034613,120]
[403678308,1769468831154,500.0,0.00034613,120]
[403678309,1769468831419,316.36390407,0.00034613,120]
[403678310,1769468831488,500.0,0.00034613,120]
[403678311,1769468832803,500.0,0.00034613,120]
[403678312,1769468833041,500.0,0.00034613,120]
[403678313,1769468833174,500.0,0.00034613,120]
[403678314,1769468833774,500.0,0.00034613,120]
[403678315,1769468834018,500.0,0.00034613,120]
[403678316,1769468834981,500.0,0.00034613,120]
[403678317,1769468835179,500.0,0.00034613,120]
[403678318,1769468835223,501.31700469,0.00034613,120]
[403678319,1769468835939,500.0,0.00034613,120]
[403678320,1769468836916,500.0,0.00034613,120]
[403678321,1769468837152,500.0,0.00034613,120]
[403678322,1769468837951,500.97369726,0.00034613,120]
[403678323,1769468839646,500.0,0.00034613,120]
[403678324,1769468839871,222.96904307,0.00034613,120]
[403678325,1769468840174,500.0,0.00034613,120]
[403678326,1769468840420,502.12388917,0.00034613,120]
[403678327,1769468841574,500.0,0.00034613,120]
[403678328,1769468843137,470.0081998,0.00034613,120]
[403678329,1769468843218,500.0,0.00034613,120]
[403678330,1769468843461,500.0,0.00034613,120]
[403678331,1769468846197,500.0,0.00034613,120]
[403678332,1769468846443,502.14702098,0.00034613,120]
[403678333,1769468846481,500.0,0.00034613,120]
[403678334,1769468846898,500.0,0.00034613,120]
[403678335,1769468847069,500.0,0.00034613,120]
[403678336,1769468848341,500.26958967,0.00034613,120]
[403678337,1769468848375,500.0,0.00034613,120]
[403678338,1769468848474,500.57871763,0.00034613,120]
[403678339,1769468848595,501.79425145,0.00034613,120]
[403678340,1769468850406,500.65301668,0.00034613,120]
[403678341,1769468855522,500.0,0.00034613,120]
[403678342,1769468855755,555.62,0.00034613,120]
[403678343,1769468859376,500.0,0.00034613,120]
[403678344,1769468859611,500.0,0.00034613,120]
[403678345,1769468861523,500.75561263,0.00034613,120]
[403678346,1769468863282,501.02867106,0.00034613,120]
[403678349,1769468867914,500.95531199,0.00034613,120]
[403678350,1769468869003,500.0,0.00034613,120]
[403678351,1769468869942,500.0,0.00034613,120]
[403678352,1769468870190,500.0,0.00034613,120]
[403678353,1769468870422,500.0,0.00034613,120]
[403678354,1769468870673,284.26,0.00034613,120]
[403678355,1769468871302,500.0,0.00034613,120]
[403678356,1769468871530,500.0,0.00034613,120]
[403678357,1769468874228,500.50603625,0.00034613,120]
[403678358,1769468875990,500.25856991,0.00034613,120]
[403678359,1769468876031,500.0,0.00034613,120]
[403678360,1769468878249,500.0,0.00034613,120]
[403678361,1769468878342,500.0,0.00034613,120]
[403678362,1769468879380,500.66418338,0.00034613,120]
[403678363,1769468881060,500.0,0.00034613,120]
[403678364,1769468881514,500.0,0.00034613,120]
[403678365,1769468881548,500.0,0.00034613,120]
[403678366,1769468881756,500.0,0.00034613,120]
[403678367,1769468883645,500.0,0.00034613,120]
[403678368,1769468883921,500.0,0.00034613,120]
[403678370,1769468884919,500.0,0.00034613,120]
[403678371,1769468885193,500.0,0.00034613,120]
[403678372,1769468888441,517.83460805,0.00034613,120]
[403678373,1769468891226,500.88346634,0.00034613,120]
[403678374,1769468891538,501.51891477,0.00034613,120]
[403678375,1769468894437,500.0,0.00034613,120]
[403678376,1769468894673,313.94915821,0.00034613,120]
[403678377,1769468894862,500.93132891,0.00034613,120]
[403678378,1769468896467,500.0,0.00034613,120]
[403678379,1769468896726,500.0,0.00034613,120]
[403678380,1769468898608,500.0,0.00034613,120]
[403678381,1769468898822,500.0,0.00034613,120]
[403678382,1769468899604,500.0,0.00034613,120]
[403678383,1769468899868,500.0,0.00034613,120]
[403678384,1769468901608,500.0,0.00034613,120]
[403678385,1769468902197,500.0,0.00034613,120]
[403678386,1769468902446,500.0,0.00034613,120]
[403678387,1769468904303,500.0,0.00034613,120]
[403678388,1769468907676,552.65759621,0.00034613,120]
[403678389,1769468908433,500.0,0.00034613,120]
[403678390,1769468908826,500.0,0.00034613,120]
[403678391,1769468909557,501.07237123,0.00034613,120]
[403678392,1769468911372,500.0,0.00034613,120]
[403678393,1769468911614,500.0,0.00034613,120]
[403678394,1769468912255,-130.69270403,0.00012016,2]
[403678395,1769468912278,-300.08971538,0.00012016,2]
[403678397,1769468914930,500.96821789,0.00034613,120]
[403678411,1769468918389,500.0,0.00034613,120]
[403678412,1769468918622,500.0,0.00034613,120]
[403678413,1769468921518,500.51805189,0.00034613,120]
[403678414,1769468923301,500.86411001,0.00034613,120]
[403678415,1769468923998,500.0,0.00034613,120]
[403678416,1769468924237,177.98166645,0.00034613,120]
[403678417,1769468926669,500.59966924,0.00034613,120]
[403678445,1769468930302,500.0,0.00034613,120]
[403678469,1769468943165,500.0,0.00034613,120]
[403678470,1769468943403,643.90671506,0.00034613,120]
[403678471,1769468946886,500.79908825,0.00034613,120]
[403678472,1769468949883,500.0,0.00034613,120]
[403678473,1769468950059,507.63412002,0.00034613,120]
[403678474,1769468951100,-899.91028462,0.00012016,2]
[403678475,1769468951124,-300.0,0.00012016,2]
[403678476,1769468951143,-126.91759189,0.00012016,2]
[403678477,1769468951616,500.39782115,0.00034613,120]
[403678478,1769468951694,480.84236354,0.00034613,120]
[403678479,1769468953445,500.9086756,0.00034613,120]
[403678480,1769468956335,-173.08240811,0.00012016,2]
[403678481,1769468956358,-196.95357702,0.00012016,2]
[403678482,1769468956378,-26113.8161203,0.00012017,2]
[403678483,1769468956400,-500.0,0.00012251,2]
[403678484,1769468956424,-500.0,0.00012251,2]
[403678485,1769468956444,-614.41560858,0.00012251,2]
[403678486,1769468956466,-500.0,0.00012251,2]
[403678487,1769468956488,-500.0,0.00012251,2]
[403678488,1769468956512,-500.0,0.00012251,2]
[403678489,1769468956536,-500.0,0.00012251,2]
[403678490,1769468956557,-500.0,0.00012251,2]
[403678491,1769468956579,-500.0,0.00012251,2]
[403678492,1769468956603,-500.0,0.00012251,2]
[403678493,1769468956626,-398.94992418,0.00012251,2]
[403678494,1769468956650,-500.0,0.00012251,2]
[403678495,1769468956671,-500.0,0.00012251,2]
[403678496,1769468956692,-500.0,0.00012251,2]
[403678497,1769468956714,-500.0,0.00012251,2]
[403678498,1769468956738,-500.0,0.00012251,2]
[403678499,1769468956761,-500.0,0.00012251,2]
[403678500,1769468956784,-500.0,0.00012251,2]
[403678501,1769468956806,-500.0,0.00012251,2]
[403678502,1769468956832,-500.0,0.00012251,2]
[403678503,1769468956854,-500.0,0.00012251,2]
[403678504,1769468956877,-500.0,0.00012251,2]
[403678505,1769468956899,-500.0,0.00012251,2]
[403678506,1769468956922,-500.0,0.00012251,2]
[403678507,1769468956945,-500.0,0.00012251,2]
[403678508,1769468956968,-500.0,0.00012251,2]
[403678509,1769468956990,-500.0,0.00012251,2]
[403678510,1769468957013,-500.0,0.00012251,2]
[403678511,1769468957036,-500.0,0.00012251,2]
[403678512,1769468957058,-500.0,0.00012251,2]
[403678513,1769468957082,-500.0,0.00012251,2]
[403678514,1769468957107,-500.0,0.00012251,2]
[403678515,1769468957134,-500.0,0.00012251,2]
[403678516,1769468957158,-500.0,0.00012251,2]
[403678517,1769468957180,-500.0,0.00012251,2]
[403678518,1769468957204,-500.0,0.00012251,2]
[403678519,1769468957228,-500.0,0.00012251,2]
[403678520,1769468957252,-500.0,0.00012251,2]
[403678521,1769468957275,-334.77203442,0.00012251,2]
[403678522,1769468957296,-500.0,0.00012251,2]
[403678523,1769468957320,-500.0,0.00012251,2]
[403678524,1769468957344,-500.0,0.00012251,2]
[403678525,1769468957367,-500.0,0.00012251,2]
[403678526,1769468957394,-500.0,0.00012251,2]
[403678527,1769468957418,-500.0,0.00012251,2]
[403678528,1769468957447,-500.0,0.00012251,2]
[403678529,1769468957471,-500.0,0.00012251,2]
[403678530,1769468957494,-500.0,0.00012251,2]
[403678531,1769468957517,-500.0,0.00012251,2]
[403678532,1769468957542,-500.0,0.00012251,2]
[403678533,1769468957564,-500.0,0.00012251,2]
[403678534,1769468957585,-500.0,0.00012251,2]
[403678535,1769468957607,-500.0,0.00012251,2]
[403678536,1769468957631,-500.0,0.00012251,2]
[403678537,1769468957652,-500.0,0.00012251,2]
[403678538,1769468957674,-500.0,0.00012251,2]
[403678539,1769468957700,-500.0,0.00012251,2]
[403678540,1769468957724,-216.29805219,0.00012251,2]
[403678541,1769468957748,-500.0,0.00012251,2]
[403678542,1769468957771,-500.0,0.00012251,2]
[403678543,1769468957796,-500.0,0.00012251,2]
[403678544,1769468957821,-500.0,0.00012251,2]
[403678545,1769468957844,-500.0,0.00012251,2]
[403678546,1769468957866,-500.0,0.00012251,2]
[403678547,1769468957890,-500.0,0.00012251,2]
[403678548,1769468957912,-500.0,0.00012251,2]
[403678549,1769468957936,-500.0,0.00012251,2]
[403678550,1769468957959,-500.0,0.00012251,2]
[403678551,1769468957982,-500.0,0.00012251,2]
[403678552,1769468958005,-500.0,0.00012251,2]
[403678553,1769468958026,-500.0,0.00012251,2]
[403678554,1769468958197,-500.0,0.00012251,2]
[403678555,1769468958222,-300.0,0.00012251,2]
[403678556,1769468958245,-50000.0,0.00012253,2]
[403678557,1769468958266,-500.0,0.00012254,2]
[403678558,1769468958291,-300.0,0.00012256,2]
[403678559,1769468958312,-300.0,0.00012256,2]
[403678560,1769468958334,-300.0,0.00012256,2]
[403678561,1769468958356,-300.0,0.00012256,2]
[403678562,1769468958377,-300.0,0.00012256,2]
[403678563,1769468958398,-300.0,0.00012256,2]
[403678564,1769468958420,-300.0,0.00012256,2]
[403678565,1769468958441,-300.0,0.00012256,2]
[403678566,1769468958464,-300.0,0.00012256,2]
[403678567,1769468958487,-300.0,0.00012256,2]
[403678568,1769468958510,-300.0,0.00012256,2]
[403678569,1769468958533,-300.0,0.00012256,2]
[403678570,1769468958554,-300.0,0.00012256,2]
[403678571,1769468958575,-300.0,0.00012256,2]
[403678572,1769468958596,-300.0,0.00012256,2]
[403678573,1769468958616,-523.78,0.00012329,2]
[403678574,1769468958635,-56.01226145,0.00012329,2]
[403678575,1769468958811,484.09518778,0.00034614,120]
[403678576,1769468960305,535.40685108,0.00034614,120]
[403678577,1769468965568,500.82122581,0.00034614,120]
[403678578,1769468967276,500.0,0.00034614,120]
[403678579,1769468967532,559.83085667,0.00034614,120]
[403678580,1769468969405,500.0,0.00034614,120]
[403678581,1769468969647,500.0,0.00034614,120]
[403678582,1769468970151,-380.46773855,0.00012329,2]
[403678583,1769468970172,-363.74,0.00012329,2]
[403678584,1769468970198,-303.11,0.00012329,2]
[403678585,1769468970216,-252.59,0.00012329,2]
[403678586,1769468970241,-210.5,0.00012329,2]
[403678587,1769468970261,-175.41,0.00012329,2]
[403678588,1769468970280,-877.09,0.00012329,2]
[403678589,1769468970302,-600.0,0.000125,2]
[403678590,1769468970323,-300.0,0.00012574,2]
[403678591,1769468970346,-300.0,0.00012574,2]
[403678592,1769468970367,-238.01472622,0.00012574,2]
[403678593,1769468971724,500.77810322,0.00034614,120]
[403678594,1769468972766,500.8829873,0.00034614,120]
[403678595,1769468973468,500.80131603,0.00034614,120]
[403678596,1769468974576,501.73565306,0.00034614,120]
[403678597,1769468978161,501.44117046,0.00034614,120]
[403678599,1769468980687,501.34804544,0.00034614,120]
[403678601,1769468982836,500.0,0.00034614,120]
[403678602,1769468983073,500.0,0.00034614,120]
[403678603,1769468983273,500.0,0.00034614,120]
[403678605,1769468983506,500.0,0.00034614,120]
[403678606,1769468984589,500.0,0.00034614,120]
[403678612,1769468997081,500.0,0.00034614,120]
[403678613,1769468997864,500.0,0.00034614,120]
[403678615,1769468999859,513.99,0.00034614,120]
[403678617,1769469006229,500.68636249,0.00034614,120]
[403678618,1769469010449,500.97625318,0.00034614,120]
[403678619,1769469011970,500.0,0.00034614,120]
[403678620,1769469017291,500.81210744,0.00034614,120]
[403678621,1769469022466,500.0,0.00034614,120]
[403678622,1769469024206,500.0,0.00034614,120]
[403678623,1769469025843,500.0,0.00034614,120]
[403678624,1769469027438,500.0,0.00034614,120]
[403678657,1769469031778,-300.0,0.00012573,2]
[403678659,1769469031788,-1200.0,0.00012573,2]
[403678661,1769469031797,-1249.84055842,0.00012574,2]
[403678662,1769469031806,-193.01450548,0.00012682,2]
[403678663,1769469031815,-389.74142003,0.00012789,2]
[403678665,1769469031824,-505.08197385,0.00012968,2]
[403678667,1769469031834,-151.0,0.00013061,2]
[403678669,1769469031843,-151.0,0.00013061,2]
[403678671,1769469031852,-151.0,0.00013061,2]
[403678673,1769469031861,-159.24679696,0.00013061,2]
[403678675,1769469031871,-151.0,0.00013068,2]
[403678677,1769469031880,-213.05747,0.00013068,2]
[403678679,1769469031890,-213.05747,0.00013068,2]
[403678681,1769469031899,-213.05747,0.00013068,2]
[403678683,1769469031908,-213.05747,0.00013068,2]
[403678685,1769469031918,-487.0,0.00013069,2]
[403678686,1769469031927,-487.0,0.00013069,2]
[403678688,1769469031936,-487.0,0.00013069,2]
[403678690,1769469031945,-487.0,0.00013069,2]
[403678692,1769469031954,-487.0,0.00013069,2]
[403678694,1769469031964,-487.0,0.00013069,2]
[403678696,1769469031973,-487.0,0.00013069,2]
[403678698,1769469031982,-872.42,0.00013069,2]
[403678700,1769469031992,-644.64257651,0.00013273,2]
[403678702,1769469032002,-491.04275471,0.00013273,2]
[403678704,1769469032011,-500.44184286,0.00013273,2]
[403678706,1769469032020,-395.42063215,0.00013273,2]
[403678709,1769469032030,-517.94448888,0.00013273,2]
[403678711,1769469032049,-500.0,0.00013273,2]
[403678713,1769469032059,-500.0,0.00013273,2]
[403678715,1769469032068,-500.0,0.00013273,2]
[403678716,1769469032078,-624.69507933,0.00013273,2]
[403678718,1769469032087,-500.0,0.00013273,2]
[403678720,1769469032096,-500.0,0.00013273,2]
[403678722,1769469032106,-500.0,0.00013273,2]
[403678723,1769469032115,-500.0,0.00013273,2]
[403678724,1769469032124,-500.0,0.00013273,2]
[403678725,1769469032136,-500.0,0.00013273,2]
[403678726,1769469032337,-500.0,0.00013273,2]
[403678727,1769469032347,-151.75992217,0.00013273,2]
[403678728,1769469032357,-500.0,0.00013273,2]
[403678729,1769469032366,-500.0,0.00013273,2]
[403678730,1769469032376,-501.26276848,0.00013273,2]
[403678731,1769469032385,-500.0,0.00013273,2]
[403678732,1769469032394,-500.0,0.00013273,2]
[403678733,1769469032403,-600.0,0.00013328,2]
[403678734,1769469032413,-505.08197384,0.00013551,2]
[403678735,1769469032422,-277.73,0.00013599,2]
[403678736,1769469032431,-254.58,0.00013599,2]
[403678737,1769469032440,-228.12,0.00013599,2]
[403678738,1769469032450,-300.18056128,0.00013673,2]
[403678739,1769469032459,-300.0,0.00013673,2]
[403678740,1769469032469,-501.27195075,0.00013698,2]
[403678741,1769469032479,-533.82730126,0.00013698,2]
[403678742,1769469032488,-1000.0,0.00013698,2]
[403678743,1769469032498,-1000.0,0.00013698,2]
[403678744,1769469032507,-243.66950621,0.00013698,2]
[403678745,1769469032517,-500.0,0.00013698,2]
[403678746,1769469032530,-500.0,0.00013698,2]
[403678747,1769469032540,-500.0,0.00013698,2]
[403678748,1769469032549,-500.0,0.00013698,2]
[403678749,1769469032559,-503.31765894,0.00013698,2]
[403678750,1769469032570,-1000.0,0.00013698,2]
[403678751,1769469032580,-1000.0,0.00013698,2]
[403678752,1769469032592,-1200.0,0.00013698,2]
[403678753,1769469032604,-1207.32467729,0.00013698,2]
[403678754,1769469032614,-151.0,0.00013699,2]
[403678755,1769469032624,-274.848966,0.00013699,2]
[403678756,1769469032633,-500.0,0.00013699,2]
[403678757,1769469032644,-500.83215907,0.00013699,2]
[403678758,1769469032653,-247.05275768,0.00013699,2]
[403678759,1769469032663,-502.52758975,0.00013699,2]
[403678760,1769469032672,-500.0,0.00013699,2]
[403678761,1769469032682,-500.0,0.00013699,2]
[403678762,1769469032692,-400.10945194,0.00013699,2]
[403678763,1769469032702,-500.36733649,0.00013699,2]
[403678764,1769469032712,-500.0,0.00013699,2]
[403678765,1769469032721,-500.50462569,0.00013699,2]
[403678766,1769469032731,-536.58578237,0.00013699,2]
[403678767,1769469032740,-311.86977937,0.00013699,2]
[403678768,1769469032750,-500.0,0.00013699,2]
[403678769,1769469032759,-500.7604021,0.00013699,2]
[403678770,1769469032769,-500.0,0.00013699,2]
[403678771,1769469032780,-500.54937416,0.00013699,2]
[403678772,1769469032790,-500.0,0.00013699,2]
[403678773,1769469032799,-500.0,0.00013699,2]
[403678774,1769469032808,-500.0,0.00013699,2]
[403678775,1769469032817,-500.73943787,0.00013699,2]
[403678776,1769469032827,-500.0,0.00013699,2]
[403678777,1769469032837,-500.0,0.00013699,2]
[403678778,1769469032846,-500.0,0.00013699,2]
[403678779,1769469032856,-506.67481146,0.00013699,2]
[403678780,1769469032869,-500.0,0.00013699,2]
[403678781,1769469032878,-500.88389549,0.00013699,2]
[403678782,1769469032887,-500.0,0.00013699,2]
[403678783,1769469032896,-500.0,0.00013699,2]
[403678784,1769469032906,-501.30322648,0.00013699,2]
[403678785,1769469032918,-500.0,0.00013699,2]
[403678786,1769469032927,-500.0,0.00013699,2]
[403678787,1769469032937,-500.0,0.00013699,2]
[403678788,1769469032946,-562.62099624,0.00013699,2]
[403678789,1769469032955,-502.55776525,0.00013699,2]
[403678790,1769469032964,-187.28244438,0.00013699,2]
[403678791,1769469032974,-167.17515717,0.00013699,2]
[403678792,1769469032983,-503.30750217,0.00013699,2]
[403678793,1769469032993,-501.32902716,0.00013699,2]
[403678794,1769469033002,-500.0,0.00013699,2]
[403678795,1769469033011,-420.0,0.00013794,2]
[403678796,1769469033020,-1000.0,0.00013821,2]
[403678797,1769469033029,-1005.2588656,0.00013821,2]
[403678798,1769469033039,-1000.0,0.00013821,2]
[403678799,1769469033048,-1000.0,0.00013821,2]
[403678800,1769469033057,-547.60591868,0.00013821,2]
[403678801,1769469033066,-1000.0,0.00013821,2]
[403678802,1769469033075,-507.52933695,0.00013821,2]
[403678803,1769469033085,-1000.0,0.00013821,2]
[403678804,1769469033094,-1000.0,0.00013821,2]
[403678805,1769469033103,-1001.01152444,0.00013821,2]
[403678806,1769469033112,-1000.0,0.00013821,2]
[403678807,1769469033121,-1000.0,0.00013821,2]
[403678808,1769469033131,-1000.0,0.00013821,2]
[403678809,1769469033146,-1680.0,0.0001383,2]
[403678810,1769469033155,-1000.0,0.00013973,2]
[403678811,1769469033165,-151.0,0.0001399,2]
[403678812,1769469033174,-151.0,0.0001399,2]
[403678813,1769469033185,-151.0,0.0001399,2]
[403678814,1769469033195,-213.05747,0.0001399,2]
[403678815,1769469033206,-213.05747,0.0001399,2]
[403678816,1769469033220,-213.05747,0.0001399,2]
[403678817,1769469033230,-213.05747,0.0001399,2]
[403678818,1769469033240,-151.0,0.00014,2]
[403678819,1769469033250,-152.92,0.00014004,2]
[403678820,1769469033260,-505.08197384,0.00014134,2]
[403678821,1769469033269,-540.90054673,0.00014153,2]
[403678822,1769469033279,-151.0,0.000142,2]
[403678823,1769469033288,-478.75725327,0.00014216,2]
[403678824,1769469033297,-578.20924308,0.00014216,2]
[403678825,1769469033306,-2312.83697232,0.00014216,2]
[403678826,1769469033316,-201.93286099,0.00014216,2]
[403678827,1769469033325,-209.40437684,0.00014216,2]
[403678828,1769469033334,-500.0,0.00014247,2]
[403678829,1769469033344,-1003.26235573,0.00014247,2]
[403678830,1769469033353,-194.08711327,0.00014247,2]
[403678831,1769469033363,-188.09858345,0.00014299,2]
[403678832,1769469033372,-1500.0,0.00014368,2]
[403678833,1769469033382,-1000.0,0.00014368,2]
[403678834,1769469033391,-155.0,0.00014373,2]
[403678835,1769469033401,-166.90309853,0.00014384,2]
[403678836,1769469033411,-151.0,0.000145,2]
[403678837,1769469033421,-500.0,0.00014628,2]
[403678838,1769469033431,-427.8482017,0.00014656,2]
[403678839,1769469033440,-153.0,0.00014656,2]
[403678840,1769469033450,-720.0,0.00014661,2]
[403678841,1769469033459,-227.75711647,0.00014682,2]
[403678842,1769469033469,-151.0,0.000147,2]
[403678843,1769469033479,-505.08197384,0.00014717,2]
[403678844,1769469033488,-151.0,0.000149,2]
[403678845,1769469033497,-374.49541649,0.00014948,2]
[403678846,1769469033507,-575.71218833,0.00014948,2]
[403678847,1769469033517,-43707.4892939,0.00014949,2]
[403678848,1769469033527,-151.0,0.00014949,2]
[403678849,1769469033536,-151.0,0.00014949,2]
[403678850,1769469033546,-213.05747,0.00014949,2]
[403678851,1769469033556,-213.05747,0.00014949,2]
[403678852,1769469033565,-213.05747,0.00014949,2]
[403678853,1769469033574,-213.05747,0.00014949,2]
[403678854,1769469033583,-200.0,0.00014989,2]
[403678855,1769469033593,-206.89114519,0.00014989,2]
[403678856,1769469033602,-200.32930833,0.00014989,2]
[403678857,1769469033611,-500.0,0.00014989,2]
[403678858,1769469033621,-500.0,0.00014989,2]
[403678859,1769469033630,-500.0,0.00014989,2]
[403678860,1769469033639,-200.000001,0.00014989,2]
[403678861,1769469033648,-500.0,0.00014989,2]
[403678862,1769469033658,-500.0,0.00014989,2]
[403678863,1769469033668,-190.47763541,0.00014989,2]
[403678864,1769469033678,-200.0,0.00014989,2]
[403678865,1769469033688,-200.0,0.00014989,2]
[403678866,1769469033697,-150.28477386,0.00014989,2]
[403678867,1769469033707,-500.0,0.00014989,2]
[403678868,1769469033716,-150.0,0.00014989,2]
[403678869,1769469033726,-150.0,0.00014989,2]
[403678870,1769469033735,-500.0,0.00014989,2]
[403678871,1769469033745,-500.0,0.00014989,2]
[403678872,1769469033754,-200.0,0.00014989,2]
[403678873,1769469033764,-778.0,0.00014989,2]
[403678874,1769469033773,-150.0,0.00014989,2]
[403678875,1769469033782,-500.0,0.00014989,2]
[403678876,1769469033792,-150.0,0.00014989,2]
[403678877,1769469033801,-58546.00753664,0.0001499,2]